fUST/lending_fUST_20250722
["ID","MTS","AMOUNT","RATE_DAILY","PERIOD"]
[373970811,1753165859479,-151.0,0.00019048,2]
[373970812,1753165859489,-151.0,0.00019048,2]
[373970813,1753165859498,-151.0,0.00019048,2]
[373970814,1753165859507,-151.0,0.00019048,2]
[373970815,1753165859517,-151.0,0.00019048,2]
[373970816,1753165859526,-151.0,0.00019048,2]
[373970817,1753165859536,-151.0,0.00019048,2]
[373970818,1753165859545,-151.0,0.00019048,2]
[373970819,1753165859557,-151.0,0.00019048,2]
[373970820,1753165859566,-151.0,0.00019048,2]
[373970821,1753165859575,-151.0,0.00019048,2]
[373970822,1753165859584,-151.0,0.00019048,2]
[373970823,1753165859595,-151.0,0.00019048,2]
[373970835,1753165859695,-151.0,0.00019048,2]
[373970837,1753165859705,-151.0,0.00019048,2]
[373970839,1753165859714,-151.0,0.00019048,2]
[373970841,1753165859724,-151.0,0.00019048,2]
[373970842,1753165859734,-161.90412321,0.00019048,2]
[373970844,1753165859744,-193.0498355,0.00019068,2]
[373970847,1753165859765,-698.48,0.00019174,2]
[373970850,1753165859777,-1527.72,0.00019176,2]
[373970852,1753165859787,-460.0,0.00019176,2]
[373970854,1753165859798,-990.31,0.00019176,2]
[373970856,1753165859813,-460.0,0.00019176,2]
[373970858,1753165859824,-460.0,0.00019176,2]
[373970860,1753165859834,-460.0,0.00019176,2]
[373970862,1753165859845,-460.0,0.00019176,2]
[373970864,1753165859856,-154.354293,0.00019178,2]
[373970866,1753165859868,-154.603585,0.00019178,2]
[373970868,1753165859879,-460.0,0.00019178,2]
[373970871,1753165859890,-460.0,0.00019178,2]
[373970873,1753165859900,-460.0,0.00019178,2]
[373970875,1753165859911,-460.0,0.00019178,2]
[373970877,1753165859921,-311.731564,0.00019178,2]
[373970879,1753165859931,-471.75,0.00019181,2]
[373970881,1753165859941,-460.0,0.00019181,2]
[373970883,1753165859952,-460.0,0.00019181,2]
[373970885,1753165859963,-460.0,0.00019181,2]
[373970887,1753165859973,-460.0,0.00019181,2]
[373970889,1753165859983,-491.60167666,0.00019181,2]
[373970891,1753165859993,-460.0,0.00019181,2]
[373970893,1753165860004,-688.13,0.00019183,2]
[373970895,1753165860014,-1015.18,0.00019183,2]
[373970897,1753165860024,-460.0,0.00019183,2]
[373970899,1753165860034,-2294.37,0.00019184,2]
[373970901,1753165860044,-1115.84,0.00019184,2]
[373970903,1753165860057,-499.03,0.00019184,2]
[373970905,1753165860067,-460.0,0.00019184,2]
[373970907,1753165860078,-935.54,0.00019184,2]
[373970909,1753165860088,-460.0,0.00019184,2]
[373970911,1753165860099,-460.0,0.00019184,2]
[373970913,1753165860111,-223.793686,0.00019184,2]
[373970915,1753165860122,-460.0,0.00019184,2]
[373970918,1753165860132,-2053.23,0.00019188,2]
[373970920,1753165860141,-843.86,0.00019189,2]
[373970922,1753165860152,-779.4,0.00019189,2]
[373970924,1753165860162,-3537.73,0.00019289,2]
[373970926,1753165860171,-1216.62,0.00019289,2]
[373970928,1753165860181,-1665.78,0.00019292,2]
[373970930,1753165860191,-460.0,0.00019292,2]
[373970932,1753165860201,-756.26,0.00019292,2]
[373970934,1753165860211,-151.74862,0.00019296,2]
[373970936,1753165860220,-151.0,0.00019329,2]
[373970938,1753165860230,-154.05177,0.00019329,2]
[373970940,1753165860240,-154.089236,0.00019329,2]
[373970942,1753165860251,-151.0,0.00019329,2]
[373970944,1753165860260,-151.0,0.00019329,2]
[373970946,1753165860271,-100000.0,0.00019329,2]
[373970948,1753165860281,-160.4,0.0001933,3]
[373970950,1753165860291,-151.0,0.000194,2]
[373970952,1753165860301,-698.48,0.00019448,2]
[373970954,1753165860313,-1527.72,0.0001945,2]
[373970956,1753165860322,-460.0,0.0001945,2]
[373970958,1753165860332,-990.31,0.0001945,2]
[373970960,1753165860342,-460.0,0.0001945,2]
[373970962,1753165860352,-460.0,0.0001945,2]
[373970964,1753165860362,-342.60830233,0.0001945,2]
[373970966,1753165860373,-460.0,0.0001945,2]
[373970968,1753165860385,-460.0,0.00019452,2]
[373970970,1753165860395,-460.0,0.00019452,2]
[373970972,1753165860405,-460.0,0.00019452,2]
[373970975,1753165860415,-460.0,0.00019452,2]
[373970977,1753165860424,-460.0,0.00019455,2]
[373970978,1753165860434,-460.0,0.00019455,2]
[373970980,1753165860444,-309.17,0.00019455,2]
[373970982,1753165860453,-460.0,0.00019455,2]
[373970984,1753165860463,-460.0,0.00019455,2]
[373970986,1753165860474,-688.13,0.00019457,2]
[373970989,1753165860484,-1015.18,0.00019457,2]
[373970991,1753165860493,-460.0,0.00019457,2]
[373970993,1753165860502,-2294.37,0.00019458,2]
[373970995,1753165860512,-1115.84,0.00019458,2]
[373970997,1753165860521,-499.03,0.00019458,2]
[373970999,1753165860531,-460.0,0.00019458,2]
[373971000,1753165860540,-935.54,0.00019458,2]
[373971002,1753165860549,-460.0,0.00019458,2]
[373971004,1753165860561,-460.0,0.00019458,2]
[373971007,1753165860571,-460.0,0.00019458,2]
[373971009,1753165860581,-2053.23,0.00019462,2]
[373971011,1753165860590,-843.86,0.00019463,2]
[373971013,1753165860600,-779.4,0.00019463,2]
[373971015,1753165860610,-560.0,0.00019492,2]
[373971017,1753165860620,-3537.73,0.00019563,2]
[373971019,1753165860629,-1216.62,0.00019563,2]
[373971020,1753165860639,-1665.78,0.00019566,2]
[373971023,1753165860649,-460.0,0.00019566,2]
[373971025,1753165860661,-756.26,0.00019566,2]
[373971027,1753165860670,-500.0,0.0001966,2]
[373971029,1753165860680,-500.0,0.0001966,2]
[373971031,1753165860690,-500.0,0.0001966,2]
[373971033,1753165860705,-160.4,0.00019697,3]
[373971035,1753165860716,-512.46627473,0.0001972,2]
[373971037,1753165860727,-698.48,0.00019722,2]
[373971039,1753165860738,-1527.72,0.00019724,2]
[373971041,1753165860749,-460.0,0.00019724,2]
[373971043,1753165860760,-990.31,0.00019724,2]
[373971045,1753165860771,-460.0,0.00019724,2]
[373971047,1753165860782,-460.0,0.00019724,2]
[373971049,1753165860792,-460.0,0.00019724,2]
[373971051,1753165860802,-460.0,0.00019726,2]
[373971053,1753165860820,-460.0,0.00019726,2]
[373971055,1753165860830,-460.0,0.00019726,2]
[373971058,1753165860842,-460.0,0.00019726,2]
[373971060,1753165860852,-460.0,0.00019729,2]
[373971062,1753165860863,-412.6198298,0.00019729,2]
[373971064,1753165860873,-574.87,0.00019729,2]
[373971066,1753165860886,-460.0,0.00019729,2]
[373971068,1753165860896,-688.13,0.00019731,2]
[373971070,1753165860907,-1015.18,0.00019731,2]
[373971072,1753165860918,-460.0,0.00019731,2]
[373971074,1753165860929,-2294.37,0.00019732,2]
[373971076,1753165860939,-1115.84,0.00019732,2]
[373971078,1753165860948,-499.03,0.00019732,2]
[373971080,1753165860959,-460.0,0.00019732,2]
[373971082,1753165860969,-935.54,0.00019732,2]
[373971084,1753165860979,-460.0,0.00019732,2]
[373971086,1753165860989,-460.0,0.00019732,2]
[373971088,1753165860998,-460.0,0.00019732,2]
[373971090,1753165861008,-843.86,0.00019736,2]
[373971092,1753165861017,-779.4,0.00019736,2]
[373971094,1753165861027,-2053.23,0.00019736,2]
[373971096,1753165861036,-3537.73,0.00019837,2]
[373971098,1753165861045,-1216.62,0.00019837,2]
[373971100,1753165861055,-1665.78,0.0001984,2]
[373971102,1753165861067,-460.0,0.0001984,2]
[373971104,1753165861077,-756.26,0.0001984,2]
[373971106,1753165861086,-500.0,0.00019854,2]
[373971108,1753165861096,-151.0,0.00019854,2]
[373971110,1753165861105,-587.0,0.00019942,2]
[373971112,1753165861115,-160.18,0.00019977,2]
[373971114,1753165861124,-698.48,0.00019996,2]
[373971116,1753165861135,-1527.72,0.00019998,2]
[373971118,1753165861144,-460.0,0.00019998,2]
[373971120,1753165861154,-990.31,0.00019998,2]
[373971122,1753165861164,-460.0,0.00019998,2]
[373971124,1753165861173,-460.0,0.00019998,2]
[373971126,1753165861183,-460.0,0.00019998,2]
[373971128,1753165861193,-460.0,0.0002,2]
[373971130,1753165861203,-35850.79696441,0.0002,2]
[373971132,1753165861212,-72599.65487824,0.0002,2]
[373971134,1753165861222,-460.0,0.0002,2]
[373971136,1753165861232,-460.0,0.0002,2]
[373971138,1753165861242,-4000.0,0.0002,4]
[373971140,1753165861252,-460.0,0.0002,2]
[373971142,1753165861262,-460.0,0.00020003,2]
[373971144,1753165861271,-394.18492519,0.00020003,2]
[373971146,1753165861282,-688.13,0.00020005,2]
[373971148,1753165861292,-1015.18,0.00020005,2]
[373971150,1753165861302,-460.0,0.00020005,2]
[373971152,1753165861316,-2294.37,0.00020006,2]
[373971154,1753165861326,-1115.84,0.00020006,2]
[373971156,1753165861336,-499.03,0.00020006,2]
[373971158,1753165861345,-171.07,0.00020006,2]
[373971160,1753165861355,-935.54,0.00020006,2]
[373971162,1753165861365,-460.0,0.00020006,2]
[373971175,1753165861474,-460.0,0.00020006,2]
[373971177,1753165861484,-460.0,0.00020006,2]
[373971179,1753165861493,-843.86,0.0002001,2]
[373971180,1753165861502,-779.4,0.0002001,2]
[373971182,1753165861511,-2053.23,0.0002001,2]
[373971184,1753165861521,-660.0,0.0002004,2]
[373971186,1753165861530,-2157.0,0.00020051,2]
[373971188,1753165861539,-968.0,0.00020051,2]
[373971190,1753165861549,-417.607,0.00020051,2]
[373971192,1753165861561,-419.15,0.00020051,2]
[373971194,1753165861571,-160.4,0.00020064,3]
[373971196,1753165861580,-150.0,0.00020067,2]
[373971198,1753165861589,-3537.73,0.00020111,2]
[373971200,1753165861599,-1216.62,0.00020111,2]
[373971202,1753165861608,-1665.78,0.00020114,2]
[373971204,1753165861617,-460.0,0.00020114,2]
[373971206,1753165861627,-756.26,0.00020114,2]
[373971208,1753165861637,-152.175719,0.00020132,2]
[373971210,1753165861646,-1034.111723,0.00020132,2]
[373971212,1753165861655,-1034.111723,0.00020132,2]
[373971214,1753165861665,-1035.0,0.00020142,2]
[373971216,1753165861674,-207.417206,0.00020187,2]
[373971218,1753165861684,-698.48,0.0002027,2]
[373971220,1753165861694,-1527.72,0.00020272,2]
[373971222,1753165861704,-460.0,0.00020272,2]
[373971224,1753165861713,-990.31,0.00020272,2]
[373971226,1753165861723,-460.0,0.00020272,2]
[373971228,1753165861733,-460.0,0.00020272,2]
[373971230,1753165861743,-460.0,0.00020272,2]
[373971232,1753165861753,-460.0,0.00020274,2]
[373971234,1753165861763,-460.0,0.00020274,2]
[373971236,1753165861772,-526.81249376,0.00020274,2]
[373971238,1753165861782,-460.0,0.00020274,2]
[373971240,1753165861792,-460.0,0.00020277,2]
[373971242,1753165861802,-688.13,0.00020279,2]
[373971244,1753165861815,-1015.18,0.00020279,2]
[373971246,1753165861825,-460.0,0.00020279,2]
[373971248,1753165861834,-2294.37,0.0002028,2]
[373971250,1753165861844,-1115.84,0.0002028,2]
[373971252,1753165861854,-499.03,0.0002028,2]
[373971254,1753165861863,-935.54,0.0002028,2]
[373971256,1753165861874,-460.0,0.0002028,2]
[373971258,1753165861887,-460.0,0.0002028,2]
[373971260,1753165861896,-460.0,0.0002028,2]
[373971262,1753165861906,-843.86,0.00020284,2]
[373971264,1753165861918,-779.4,0.00020284,2]
[373971266,1753165861927,-2053.23,0.00020284,2]
[373971269,1753165861937,-800.0,0.0002036,2]
[373971271,1753165861948,-3537.73,0.00020385,2]
[373971272,1753165861958,-1216.62,0.00020385,2]
[373971273,1753165861968,-1665.78,0.00020388,2]
[373971274,1753165861977,-460.0,0.00020388,2]
[373971275,1753165861986,-756.26,0.00020388,2]
[373971276,1753165861996,-223.0315306,0.00020417,2]
[373971277,1753165862005,-160.4,0.00020431,4]
[373971278,1753165862014,-698.48,0.00020544,2]
[373971279,1753165862024,-1527.72,0.00020546,2]
[373971280,1753165862033,-460.0,0.00020546,2]
[373971282,1753165862044,-990.31,0.00020546,2]
[373971284,1753165862053,-460.0,0.00020546,2]
[373971286,1753165862068,-460.0,0.00020546,2]
[373971288,1753165862078,-460.0,0.00020546,2]
[373971290,1753165862087,-460.0,0.00020548,2]
[373971292,1753165862097,-460.0,0.00020548,2]
[373971294,1753165862107,-460.0,0.00020548,2]
[373971296,1753165862117,-460.0,0.00020551,2]
[373971298,1753165862127,-688.13,0.00020553,2]
[373971300,1753165862136,-1015.18,0.00020553,2]
[373971302,1753165862146,-460.0,0.00020553,2]
[373971304,1753165862156,-2294.37,0.00020554,2]
[373971306,1753165862166,-1115.84,0.00020554,2]
[373971308,1753165862176,-499.03,0.00020554,2]
[373971310,1753165862185,-935.54,0.00020554,2]
[373971312,1753165862195,-193.03349605,0.00020554,2]
[373971314,1753165862205,-460.0,0.00020554,2]
[373971317,1753165862224,-460.0,0.00020554,2]
[373971320,1753165862235,-843.86,0.00020558,2]
[373971322,1753165862245,-779.4,0.00020558,2]
[373971324,1753165862254,-2053.23,0.00020558,2]
[373971326,1753165862264,-760.0,0.00020588,2]
[373971328,1753165862274,-3537.73,0.00020659,2]
[373971330,1753165862284,-1216.62,0.00020659,2]
[373971332,1753165862294,-1665.78,0.00020662,2]
[373971334,1753165862305,-563.6819367,0.00020662,2]
[373971336,1753165862318,-756.26,0.00020662,2]
[373971338,1753165862328,-1000.442,0.00020755,2]
[373971340,1753165862338,-160.4,0.00020798,4]
[373971342,1753165862349,-151.0,0.000208,3]
[373971344,1753165862359,-698.48,0.00020818,2]
[373971347,1753165862370,-1527.72,0.0002082,2]
[373971349,1753165862380,-460.0,0.0002082,2]
[373971351,1753165862390,-990.31,0.0002082,2]
[373971353,1753165862401,-460.0,0.0002082,2]
[373971355,1753165862411,-460.0,0.0002082,2]
[373971357,1753165862421,-460.0,0.0002082,2]
[373971359,1753165862431,-460.0,0.00020822,2]
[373971361,1753165862441,-460.0,0.00020822,2]
[373971363,1753165862452,-460.0,0.00020822,2]
[373971365,1753165862462,-460.0,0.00020825,2]
[373971367,1753165862472,-688.13,0.00020827,2]
[373971369,1753165862482,-1015.18,0.00020827,2]
[373971371,1753165862492,-460.0,0.00020827,2]
[373971373,1753165862502,-2294.37,0.00020828,2]
[373971375,1753165862512,-1115.84,0.00020828,2]
[373971377,1753165862523,-499.03,0.00020828,2]
[373971379,1753165862532,-935.54,0.00020828,2]
[373971381,1753165862542,-460.0,0.00020828,2]
[373971383,1753165862552,-460.0,0.00020828,2]
[373971385,1753165862563,-843.86,0.00020832,2]
[373971387,1753165862572,-779.4,0.00020832,2]
[373971389,1753165862582,-2053.23,0.00020832,2]
[373971391,1753165862591,-500.0,0.00020846,2]
[373971393,1753165862601,-3537.73,0.00020933,2]
[373971395,1753165862611,-1216.62,0.00020933,2]
[373971398,1753165862621,-1665.78,0.00020936,2]
[373971400,1753165862632,-756.26,0.00020936,2]
[373971402,1753165862641,-698.48,0.00021092,2]
[373971404,1753165862652,-1527.72,0.00021094,2]
[373971406,1753165862662,-460.0,0.00021094,2]
[373971408,1753165862671,-990.31,0.00021094,2]
[373971410,1753165862681,-460.0,0.00021094,2]
[373971412,1753165862691,-166.88,0.00021094,2]
[373971414,1753165862701,-460.0,0.00021094,2]
[373971416,1753165862712,-460.0,0.00021096,2]
[373971418,1753165862721,-460.0,0.00021096,2]
[373971421,1753165862731,-460.0,0.00021096,2]
[373971423,1753165862741,-278.44848106,0.00021099,2]
[373971425,1753165862751,-688.13,0.00021101,2]
[373971427,1753165862760,-1015.18,0.00021101,2]
[373971429,1753165862770,-460.0,0.00021101,2]
[373971431,1753165862779,-2294.37,0.00021102,2]
[373971433,1753165862789,-1115.84,0.00021102,2]
[373971434,1753165862798,-499.03,0.00021102,2]
[373971437,1753165862809,-935.54,0.00021102,2]
[373971439,1753165862818,-460.0,0.00021102,2]
[373971441,1753165862828,-460.0,0.00021102,2]
[373971443,1753165862837,-843.86,0.00021106,2]
[373971445,1753165862847,-779.4,0.00021106,2]
[373971447,1753165862856,-2053.23,0.00021106,2]
[373971449,1753165862866,-860.0,0.00021136,2]
[373971451,1753165862876,-160.4,0.00021165,4]
[373971452,1753165862887,-2200.0,0.00021183,2]
[373971455,1753165862897,-3537.73,0.00021207,2]
[373971456,1753165862907,-1216.62,0.00021207,2]
[373971458,1753165862919,-152.614176,0.0002121,2]
[373971461,1753165862929,-1665.78,0.0002121,2]
[373971463,1753165862941,-756.26,0.0002121,2]
[373971465,1753165862951,-266.97,0.00021231,2]
[373971467,1753165862963,-698.48,0.00021366,2]
[373971479,1753165863076,-1527.72,0.00021368,2]
[373971482,1753165863094,-460.0,0.00021368,2]
[373971484,1753165863104,-990.31,0.00021368,2]
[373971486,1753165863114,-460.0,0.00021368,2]
[373971488,1753165863125,-224.1,0.00021368,2]
[373971490,1753165863136,-460.0,0.0002137,2]
[373971492,1753165863146,-323.80995056,0.0002137,2]
[373971494,1753165863156,-377.64,0.0002137,2]
[373971496,1753165863166,-688.13,0.00021375,2]
[373971498,1753165863176,-1015.18,0.00021375,2]
[373971500,1753165863186,-460.0,0.00021375,2]
[373971502,1753165863196,-2294.37,0.00021376,2]
[373971504,1753165863206,-1115.84,0.00021376,2]
[373971506,1753165863216,-499.03,0.00021376,2]
[373971508,1753165863226,-935.54,0.00021376,2]
[373971510,1753165863236,-460.0,0.00021376,2]
[373971512,1753165863246,-460.0,0.00021376,2]
[373971514,1753165863256,-843.86,0.0002138,2]
[373971516,1753165863266,-779.4,0.0002138,2]
[373971518,1753165863276,-2053.23,0.0002138,2]
[373971520,1753165863285,-3537.73,0.00021481,2]
[373971522,1753165863295,-1216.62,0.00021481,2]
[373971524,1753165863306,-1665.78,0.00021484,2]
[373971526,1753165863318,-756.26,0.00021484,2]
[373971528,1753165863329,-800.0,0.0002153,2]
[373971530,1753165863339,-160.4,0.00021532,5]
[373971532,1753165863349,-577.4526085,0.00021533,2]
[373971534,1753165863360,-577.4526085,0.00021533,2]
[373971536,1753165863370,-159.8957685,0.00021551,2]
[373971538,1753165863380,-159.8957685,0.00021551,2]
[373971540,1753165863391,-178.204927,0.00021551,2]
[373971542,1753165863401,-159.8957685,0.00021551,2]
[373971544,1753165863412,-698.48,0.0002164,2]
[373971547,1753165863423,-1527.72,0.00021642,2]
[373971549,1753165863433,-267.78681544,0.00021642,2]
[373971551,1753165863443,-990.31,0.00021642,2]
[373971553,1753165863453,-460.0,0.00021642,2]
[373971555,1753165863463,-257.56,0.00021644,2]
[373971557,1753165863472,-688.13,0.00021649,2]
[373971559,1753165863482,-1015.18,0.00021649,2]
[373971561,1753165863491,-460.0,0.00021649,2]
[373971563,1753165863501,-2294.37,0.0002165,2]
[373971565,1753165863511,-1115.84,0.0002165,2]
[373971567,1753165863521,-499.03,0.0002165,2]
[373971569,1753165863531,-935.54,0.0002165,2]
[373971571,1753165863541,-460.0,0.0002165,2]
[373971573,1753165863551,-460.0,0.0002165,2]
[373971575,1753165863563,-779.4,0.00021654,2]
[373971577,1753165863573,-2053.23,0.00021654,2]
[373971579,1753165863583,-150.0,0.00021739,2]
[373971581,1753165863594,-877.72466876,0.00021739,2]
[373971583,1753165863604,-3537.73,0.00021755,2]
[373971585,1753165863614,-1216.62,0.00021755,2]
[373971587,1753165863623,-1665.78,0.00021758,2]
[373971589,1753165863634,-756.26,0.00021758,2]
[373971591,1753165863643,-151.0,0.00021762,2]
[373971593,1753165863653,-231.28369723,0.00021786,2]
[373971595,1753165863663,-823.0,0.00021788,2]
[373971597,1753165863673,-343.40709045,0.00021888,2]
[373971599,1753165863683,-160.4,0.00021899,5]
[373971601,1753165863693,-698.48,0.00021914,2]
[373971603,1753165863703,-1527.72,0.00021916,2]
[373971605,1753165863714,-990.31,0.00021916,2]
[373971607,1753165863724,-460.0,0.00021916,2]
[373971609,1753165863734,-151.0,0.00021917,2]
[373971611,1753165863745,-500.0,0.00021917,2]
[373971614,1753165863755,-500.0,0.00021917,2]
[373971615,1753165863765,-500.0,0.00021917,2]
[373971618,1753165863775,-500.0,0.00021917,2]
[373971620,1753165863785,-500.0,0.00021917,2]
[373971622,1753165863795,-192.28591105,0.00021917,2]
[373971624,1753165863804,-164.00619825,0.00021918,2]
[373971625,1753165863816,-151.0,0.00021918,2]
[373971628,1753165863826,-151.0,0.00021918,2]
[373971629,1753165863836,-151.0,0.00021918,2]
[373971631,1753165863845,-151.0,0.00021918,2]
[373971633,1753165863854,-150.0,0.00021918,2]
[373971635,1753165863866,-688.13,0.00021923,2]
[373971637,1753165863876,-1015.18,0.00021923,2]
[373971640,1753165863889,-460.0,0.00021923,2]
[373971642,1753165863899,-2294.37,0.00021924,2]
[373971643,1753165863910,-1115.84,0.00021924,2]
[373971645,1753165863920,-499.03,0.00021924,2]
[373971648,1753165863930,-935.54,0.00021924,2]
[373971649,1753165863939,-460.0,0.00021924,2]
[373971651,1753165863949,-598.24,0.00021924,2]
[373971653,1753165863959,-779.4,0.00021928,2]
[373971655,1753165863970,-2053.23,0.00021928,2]
[373971658,1753165863979,-2637.42277536,0.00021929,2]
[373971660,1753165863989,-1917.15,0.00022,7]
[373971661,1753165863999,-3516.28,0.00022,7]
[373971663,1753165864009,-64742.18,0.00022,2]
[373971665,1753165864018,-151.0,0.00022,7]
[373971667,1753165864028,-3537.73,0.00022029,2]
[373971669,1753165864038,-1216.62,0.00022029,2]
[373971671,1753165864047,-1665.78,0.00022032,2]
[373971673,1753165864060,-756.26,0.00022032,2]
[373971676,1753165864070,-600.0,0.0002208,2]
[373971678,1753165864080,-698.48,0.00022188,2]
[373971680,1753165864089,-1527.72,0.0002219,2]
[373971682,1753165864099,-990.31,0.0002219,2]
[373971684,1753165864108,-593.30788271,0.0002219,2]
[373971686,1753165864118,-688.13,0.00022196,2]
[373971688,1753165864127,-1015.18,0.00022196,2]
[373971690,1753165864137,-460.0,0.00022196,2]
[373971692,1753165864148,-2294.37,0.00022198,2]
[373971694,1753165864157,-1115.84,0.00022198,2]
[373971696,1753165864167,-499.03,0.00022198,2]
[373971698,1753165864177,-935.54,0.00022198,2]
[373971700,1753165864187,-255.0476356,0.00022198,2]
[373971702,1753165864197,-151.0,0.000222,10]
[373971704,1753165864207,-779.4,0.00022202,2]
[373971706,1753165864217,-2053.23,0.00022202,2]
[373971708,1753165864227,-164.00619825,0.00022219,2]
[373971710,1753165864236,-168.0,0.0002225,2]
[373971712,1753165864246,-1034.111723,0.00022264,7]
[373971714,1753165864256,-1034.111723,0.00022264,7]
[373971716,1753165864266,-160.4,0.00022266,5]
[373971718,1753165864275,-3537.73,0.00022303,2]
[373971720,1753165864285,-1216.62,0.00022303,2]
[373971722,1753165864294,-1665.78,0.00022306,2]
[373971723,1753165864304,-756.26,0.00022306,2]
[373971724,1753165864314,-601.3282582,0.0002231,2]
[373971725,1753165864324,-324.34027427,0.0002235,2]
[373971726,1753165864335,-1297.36109706,0.0002235,2]
[373971727,1753165864345,-2919.06246839,0.0002235,2]
[373971728,1753165864355,-5189.44438825,0.0002235,2]
[373971729,1753165864364,-8108.50685664,0.0002235,2]
[373971730,1753165864374,-11664.57362368,0.0002235,2]
[373971731,1753165864384,-326.5567719,0.00022355,2]
[373971732,1753165864393,-577.4526085,0.00022355,2]
[373971733,1753165864403,-577.4526085,0.00022355,2]
[373971734,1753165864412,-159.8957685,0.00022355,2]
[373971735,1753165864422,-577.4526085,0.00022355,2]
[373971736,1753165864431,-159.8957685,0.00022355,2]
[373971737,1753165864440,-159.8957685,0.00022355,2]
[373971738,1753165864450,-577.4526085,0.00022355,2]
[373971739,1753165864459,-159.8957685,0.00022355,2]
[373971745,1753165864546,-577.4526085,0.00022355,2]
[373971747,1753165864555,-159.8957685,0.00022355,2]
[373971749,1753165864567,-577.4526085,0.00022355,2]
[373971751,1753165864576,-159.8957685,0.00022355,2]
[373971753,1753165864586,-159.8957685,0.00022355,2]
[373971755,1753165864595,-577.4526085,0.00022355,2]
[373971757,1753165864604,-159.8957685,0.00022355,2]
[373971758,1753165864614,-356.3491356,0.00022355,2]
[373971760,1753165864623,-577.4526085,0.00022355,2]
[373971762,1753165864633,-178.204927,0.00022355,2]
[373971764,1753165864642,-159.8957685,0.00022355,2]
[373971766,1753165864652,-577.4526085,0.00022355,2]
[373971768,1753165864662,-178.204927,0.00022355,2]
[373971770,1753165864671,-159.8957685,0.00022355,2]
[373971772,1753165864680,-577.4526085,0.00022355,2]
[373971774,1753165864690,-577.4526085,0.00022355,2]
[373971776,1753165864700,-159.8957685,0.00022355,2]
[373971778,1753165864709,-178.204927,0.00022355,2]
[373971780,1753165864719,-159.8957685,0.00022355,2]
[373971782,1753165864729,-178.204927,0.00022355,2]
[373971784,1753165864739,-159.8957685,0.00022355,2]
[373971786,1753165864748,-178.204927,0.00022355,2]
[373971788,1753165864758,-178.204927,0.00022355,2]
[373971790,1753165864768,-178.204927,0.00022355,2]
[373971792,1753165864777,-178.204927,0.00022355,2]
[373971794,1753165864787,-178.204927,0.00022355,2]
[373971796,1753165864797,-178.204927,0.00022355,2]
[373971798,1753165864808,-178.204927,0.00022355,2]
[373971800,1753165864818,-178.204927,0.00022355,2]
[373971802,1753165864828,-178.204927,0.00022355,2]
[373971804,1753165864837,-178.204927,0.00022355,2]
[373971806,1753165864847,-178.204927,0.00022355,2]
[373971808,1753165864856,-178.8773269,0.00022355,2]
[373971809,1753165864866,-356.0935675,0.00022373,2]
[373971811,1753165864878,-356.409854,0.00022373,2]
[373971813,1753165864889,-178.204927,0.00022373,2]
[373971815,1753165864899,-178.204927,0.00022373,2]
[373971817,1753165864911,-178.204927,0.00022373,2]